[Event "Titled Tuesday Blitz October 31 Late 2023"]
[White "balachess2006"]
[Black "Maximov, Dmitry"]
[BlackFideId "14105659"]
[WhiteElo "2587"]
[BlackElo "2729"]
[Result "0-1"]
[Round "6"]
[TimeControl "180+1"]
[Date "2023.10.31"]
[WhiteClock "0:01:04"]
[BlackClock "0:01:03"]
[Board "41"]

1. Nf3 {[%clk 0:03:00]}  Nf6 {[%clk 0:02:59]} 2. c4 {[%clk 0:02:59]}  g6 {[%clk 0:02:59]} 3. d4 {[%clk 0:02:59]}  Bg7 {[%clk 0:03:00]} 4. g3 {[%clk 0:02:59]}  O-O {[%clk 0:03:00]} 5. Bg2 {[%clk 0:03:00]}  d6 {[%clk 0:03:01]} 6. Nc3 {[%clk 0:03:00]}  Nbd7 {[%clk 0:03:01]} 7. O-O {[%clk 0:03:00]}  e5 {[%clk 0:03:02]} 8. e4 {[%clk 0:03:01]}  c6 {[%clk 0:03:02]} 9. h3 {[%clk 0:02:59]}  a5 {[%clk 0:03:02]} 10. Re1 {[%clk 0:02:58]}  Re8 {[%clk 0:03:02]} 11. Be3 {[%clk 0:02:57]}  a4 {[%clk 0:03:01]} 12. Qc2 {[%clk 0:02:55]}  Qa5 {[%clk 0:03:00]} 13. dxe5 {[%clk 0:02:53]}  dxe5 {[%clk 0:02:54]} 14. a3 {[%clk 0:02:53]}  Bf8 {[%clk 0:02:46]} 15. Rad1 {[%clk 0:02:38]}  Nc5 {[%clk 0:02:46]} 16. Kh2 {[%clk 0:02:17]}  Qa6 {[%clk 0:02:35]} 17. Na2 {[%clk 0:02:11]}  Ncxe4 {[%clk 0:02:28]} 18. Ng5 {[%clk 0:02:10]}  Nxg5 {[%clk 0:02:20]} 19. Bxg5 {[%clk 0:02:11]}  Bf5 {[%clk 0:02:21]} 20. Qe2 {[%clk 0:02:10]}  Nd7 {[%clk 0:02:19]} 21. Nb4 {[%clk 0:02:09]}  Qa5 {[%clk 0:02:14]} 22. f4 {[%clk 0:01:48]}  exf4 {[%clk 0:02:07]} 23. Qxe8 {[%clk 0:01:44]}  fxg3+ {[%clk 0:02:07]} 24. Kh1 {[%clk 0:01:43]}  Rxe8 {[%clk 0:02:07]} 25. Rxe8 {[%clk 0:01:42]}  Kg7 {[%clk 0:01:54]} 26. Be3 {[%clk 0:01:32]}  Bc5 {[%clk 0:01:40]} 27. Bf4 {[%clk 0:01:32]}  Bxb4 {[%clk 0:01:38]} 28. axb4 {[%clk 0:01:32]}  Qxb4 {[%clk 0:01:38]} 29. Be3 {[%clk 0:01:14]}  Qxc4 {[%clk 0:01:20]} 30. Bd4+ {[%clk 0:01:14]}  Nf6 {[%clk 0:01:19]} 31. Rd8 {[%clk 0:01:10]}  Qe2 {[%clk 0:01:16]} 32. Rf1 {[%clk 0:01:05]}  Be4 {[%clk 0:01:03]} 33. Bxf6+ {[%clk 0:01:05]}  Kh6 {[%clk 0:01:04]} 34. Rg1 {[%clk 0:01:03]}  Bxg2+ {[%clk 0:01:03]} 35. Rxg2 {[%clk 0:01:03]}  Qf1+ {[%clk 0:01:03]} 36. Rg1 {[%clk 0:01:04]}  Qxh3# {[%clk 0:01:03]} 0-1


[Site "https://www.chess.com"]

[Event "Titled Tuesday Blitz October 31 Late 2023"]
[White "Kochiev, Ivan"]
[Black "Erenberg, Ariel"]
[WhiteFideId "2917890"]
[BlackFideId "2811634"]
[WhiteElo "2582"]
[BlackElo "2715"]
[Result "0-1"]
[Round "6"]
[TimeControl "180+1"]
[Date "2023.10.31"]
[WhiteClock "0:00:00"]
[BlackClock "0:01:13"]
[Board "42"]

1. e4 {[%clk 0:03:00]}  c6 {[%clk 0:02:59]} 2. d4 {[%clk 0:03:00]}  d5 {[%clk 0:03:00]} 3. Nc3 {[%clk 0:03:01]}  dxe4 {[%clk 0:03:00]} 4. Nxe4 {[%clk 0:03:02]}  Nf6 {[%clk 0:03:00]} 5. Nxf6+ {[%clk 0:03:02]}  exf6 {[%clk 0:03:01]} 6. c3 {[%clk 0:03:03]}  Bd6 {[%clk 0:03:02]} 7. Bd3 {[%clk 0:03:03]}  O-O {[%clk 0:03:02]} 8. Ne2 {[%clk 0:03:04]}  Re8 {[%clk 0:03:01]} 9. O-O {[%clk 0:03:05]}  Nd7 {[%clk 0:03:01]} 10. Ng3 {[%clk 0:03:04]}  Nf8 {[%clk 0:03:01]} 11. f4 {[%clk 0:03:04]}  b5 {[%clk 0:02:52]} 12. f5 {[%clk 0:02:53]}  g6 {[%clk 0:02:29]} 13. fxg6 {[%clk 0:02:10]}  hxg6 {[%clk 0:02:27]} 14. Qf3 {[%clk 0:02:10]}  f5 {[%clk 0:02:13]} 15. Qxc6 {[%clk 0:02:08]}  Rb8 {[%clk 0:02:12]} 16. Bh6 {[%clk 0:01:45]}  Bb7 {[%clk 0:02:06]} 17. Qxb5 {[%clk 0:01:24]}  Bxg2 {[%clk 0:02:04]} 18. Kxg2 {[%clk 0:01:04]}  Rxb5 {[%clk 0:02:02]} 19. Bxb5 {[%clk 0:01:05]}  Re7 {[%clk 0:01:58]} 20. Bc4 {[%clk 0:00:48]}  Ne6 {[%clk 0:01:51]} 21. Rae1 {[%clk 0:00:44]}  Qe8 {[%clk 0:01:46]} 22. Kg1 {[%clk 0:00:22]}  Ng7 {[%clk 0:01:27]} 23. Rd1 {[%clk 0:00:14]}  Qb8 {[%clk 0:01:21]} 24. Kg2 {[%clk 0:00:04]}  Bxg3 {[%clk 0:01:15]} 25. hxg3 {[%clk 0:00:04]}  Nh5 {[%clk 0:01:15]} 26. Bf4 {[%clk 0:00:02]}  Qxb2+ {[%clk 0:01:14]} 27. Rd2 {[%clk 0:00:00]}  Nxf4+ {[%clk 0:01:13]} 0-1


[Site "https://www.chess.com"]

[Event "Titled Tuesday Blitz October 31 Late 2023"]
[White "Shapiro, Viktor"]
[Black "Hamitevici, Vladimir"]
[WhiteFideId "4175700"]
[BlackFideId "13902393"]
[WhiteElo "2574"]
[BlackElo "2713"]
[Result "0-1"]
[Round "6"]
[TimeControl "180+1"]
[Date "2023.10.31"]
[WhiteClock "0:00:09"]
[BlackClock "0:00:08"]
[Board "44"]

1. c4 {[%clk 0:03:00]}  d6 {[%clk 0:03:00]} 2. Nc3 {[%clk 0:03:00]}  e5 {[%clk 0:02:57]} 3. d3 {[%clk 0:02:59]}  f5 {[%clk 0:02:57]} 4. g3 {[%clk 0:03:00]}  Nf6 {[%clk 0:02:56]} 5. Bg2 {[%clk 0:03:00]}  Be7 {[%clk 0:02:56]} 6. Nf3 {[%clk 0:03:00]}  O-O {[%clk 0:02:57]} 7. Rb1 {[%clk 0:02:59]}  h6 {[%clk 0:02:51]} 8. b4 {[%clk 0:02:59]}  a6 {[%clk 0:02:52]} 9. a4 {[%clk 0:02:58]}  Qe8 {[%clk 0:02:52]} 10. O-O {[%clk 0:02:51]}  Be6 {[%clk 0:02:39]} 11. b5 {[%clk 0:02:40]}  a5 {[%clk 0:02:29]} 12. c5 {[%clk 0:02:37]}  Nbd7 {[%clk 0:02:23]} 13. cxd6 {[%clk 0:02:36]}  cxd6 {[%clk 0:02:24]} 14. Ba3 {[%clk 0:02:36]}  d5 {[%clk 0:02:19]} 15. Bxe7 {[%clk 0:02:34]}  Qxe7 {[%clk 0:02:20]} 16. e4 {[%clk 0:02:26]}  fxe4 {[%clk 0:02:16]} 17. dxe4 {[%clk 0:02:26]}  d4 {[%clk 0:02:17]} 18. Ne2 {[%clk 0:02:21]}  Bc4 {[%clk 0:02:05]} 19. Nh4 {[%clk 0:02:19]}  Qa3 {[%clk 0:01:53]} 20. Nf5 {[%clk 0:01:49]}  Nb6 {[%clk 0:01:35]} 21. f4 {[%clk 0:01:38]}  d3 {[%clk 0:01:35]} 22. Nc1 {[%clk 0:01:31]}  Rad8 {[%clk 0:01:30]} 23. fxe5 {[%clk 0:01:27]}  Qc5+ {[%clk 0:01:30]} 24. Kh1 {[%clk 0:01:26]}  Qxe5 {[%clk 0:01:27]} 25. Nb3 {[%clk 0:01:20]}  d2 {[%clk 0:00:58]} 26. Rf4 {[%clk 0:01:18]}  Qc3 {[%clk 0:00:41]} 27. e5 {[%clk 0:01:09]}  Nfd5 {[%clk 0:00:20]} 28. Qg4 {[%clk 0:00:36]}  Rxf5 {[%clk 0:00:20]} 29. Rxf5 {[%clk 0:00:36]}  Bxb3 {[%clk 0:00:19]} 30. e6 {[%clk 0:00:20]}  Re8 {[%clk 0:00:07]} 31. Rf7 {[%clk 0:00:18]}  d1=Q+ {[%clk 0:00:06]} 32. Rxd1 {[%clk 0:00:18]}  Bxd1 {[%clk 0:00:07]} 33. Qxd1 {[%clk 0:00:18]}  Ne3 {[%clk 0:00:05]} 34. Qf3 {[%clk 0:00:13]}  Qa1+ {[%clk 0:00:05]} 35. Bf1 {[%clk 0:00:13]}  Qxf1+ {[%clk 0:00:05]} 36. Qxf1 {[%clk 0:00:13]}  Nxf1 {[%clk 0:00:06]} 37. Rxf1 {[%clk 0:00:14]}  Rxe6 {[%clk 0:00:06]} 38. Rc1 {[%clk 0:00:13]}  Nxa4 {[%clk 0:00:07]} 39. Rc8+ {[%clk 0:00:13]}  Kh7 {[%clk 0:00:07]} 40. Rc7 {[%clk 0:00:14]}  Rb6 {[%clk 0:00:07]} 41. Rc4 {[%clk 0:00:13]}  Nb2 {[%clk 0:00:08]} 42. Rc5 {[%clk 0:00:11]}  a4 {[%clk 0:00:08]} 43. Rc3 {[%clk 0:00:09]}  Rxb5 {[%clk 0:00:08]} 0-1


[Site "https://www.chess.com"]

[Event "Titled Tuesday Blitz October 31 Late 2023"]
[White "Przybylski, Wojciech"]
[Black "Burke, Carol Ann"]
[WhiteFideId "1117599"]
[BlackFideId "11104643"]
[WhiteElo "2569"]
[BlackElo "2707"]
[Result "1-0"]
[Round "6"]
[TimeControl "180+1"]
[Date "2023.10.31"]
[WhiteClock "0:00:05"]
[BlackClock "0:00:01"]
[Board "45"]

1. e4 {[%clk 0:03:00]}  c5 {[%clk 0:02:59]} 2. Nf3 {[%clk 0:03:01]}  e6 {[%clk 0:02:59]} 3. d4 {[%clk 0:03:01]}  cxd4 {[%clk 0:03:00]} 4. Nxd4 {[%clk 0:03:01]}  a6 {[%clk 0:03:01]} 5. Bd3 {[%clk 0:03:01]}  Bc5 {[%clk 0:03:00]} 6. Ne2 {[%clk 0:03:01]}  Nc6 {[%clk 0:02:57]} 7. O-O {[%clk 0:03:01]}  Nf6 {[%clk 0:02:57]} 8. Nd2 {[%clk 0:03:00]}  Qc7 {[%clk 0:02:48]} 9. Nf3 {[%clk 0:03:00]}  b5 {[%clk 0:02:28]} 10. a3 {[%clk 0:02:59]}  Ng4 {[%clk 0:02:23]} 11. h3 {[%clk 0:02:53]}  Nge5 {[%clk 0:02:12]} 12. Nxe5 {[%clk 0:02:52]}  Nxe5 {[%clk 0:02:13]} 13. Bf4 {[%clk 0:02:51]}  O-O {[%clk 0:01:47]} 14. Kh1 {[%clk 0:02:49]}  d6 {[%clk 0:01:46]} 15. Bg3 {[%clk 0:02:48]}  Rb8 {[%clk 0:01:30]} 16. c3 {[%clk 0:02:41]}  a5 {[%clk 0:01:21]} 17. Bc2 {[%clk 0:02:37]}  b4 {[%clk 0:01:18]} 18. axb4 {[%clk 0:02:36]}  axb4 {[%clk 0:01:19]} 19. Rc1 {[%clk 0:02:24]}  Ba6 {[%clk 0:01:12]} 20. cxb4 {[%clk 0:02:14]}  Rxb4 {[%clk 0:01:11]} 21. b3 {[%clk 0:02:02]}  Qb6 {[%clk 0:01:03]} 22. Qd2 {[%clk 0:01:52]}  Nc6 {[%clk 0:00:45]} 23. Rfd1 {[%clk 0:01:12]}  Bxe2 {[%clk 0:00:36]} 24. Qxe2 {[%clk 0:01:10]}  Nd4 {[%clk 0:00:37]} 25. Qd2 {[%clk 0:00:56]}  Rd8 {[%clk 0:00:22]} 26. e5 {[%clk 0:00:46]}  d5 {[%clk 0:00:15]} 27. Bb1 {[%clk 0:00:39]}  g6 {[%clk 0:00:10]} 28. Qg5 {[%clk 0:00:24]}  Re8 {[%clk 0:00:09]} 29. Rc3 {[%clk 0:00:17]}  Be7 {[%clk 0:00:08]} 30. Qh6 {[%clk 0:00:17]}  Rxb3 {[%clk 0:00:05]} 31. Rxb3 {[%clk 0:00:13]}  Qxb3 {[%clk 0:00:04]} 32. Rf1 {[%clk 0:00:12]}  Nf5 {[%clk 0:00:02]} 33. Bxf5 {[%clk 0:00:11]}  exf5 {[%clk 0:00:03]} 34. Qd2 {[%clk 0:00:10]}  Rd8 {[%clk 0:00:01]} 35. Rd1 {[%clk 0:00:06]}  d4 {[%clk 0:00:02]} 36. Kh2 {[%clk 0:00:05]}  Qd5 {[%clk 0:00:02]} 37. Qd3 {[%clk 0:00:05]}  Qxe5 {[%clk 0:00:01]} 38. Bxe5 {[%clk 0:00:05]} 1-0


[Site "https://www.chess.com"]

[Event "Titled Tuesday Blitz October 31 Late 2023"]
[White "Gubajdullin, Alexei"]
[Black "Jaskolka, Tomasz"]
[WhiteFideId "4141202"]
[BlackFideId "1170791"]
[WhiteElo "2704"]
[BlackElo "2569"]
[Result "0-1"]
[Round "6"]
[TimeControl "180+1"]
[Date "2023.10.31"]
[WhiteClock "0:00:16"]
[BlackClock "0:00:13"]
[Board "46"]

1. d4 {[%clk 0:03:00]}  d5 {[%clk 0:02:59]} 2. Nf3 {[%clk 0:02:56]}  Nf6 {[%clk 0:02:57]} 3. Bf4 {[%clk 0:02:56]}  g6 {[%clk 0:02:50]} 4. Nbd2 {[%clk 0:02:56]}  Bg7 {[%clk 0:02:50]} 5. e3 {[%clk 0:02:56]}  O-O {[%clk 0:02:46]} 6. Be2 {[%clk 0:02:56]}  c5 {[%clk 0:02:47]} 7. c3 {[%clk 0:02:56]}  b6 {[%clk 0:02:41]} 8. O-O {[%clk 0:02:55]}  Ba6 {[%clk 0:02:40]} 9. Bxa6 {[%clk 0:02:53]}  Nxa6 {[%clk 0:02:41]} 10. a4 {[%clk 0:02:53]}  Nb8 {[%clk 0:02:18]} 11. a5 {[%clk 0:02:51]}  Nc6 {[%clk 0:02:15]} 12. axb6 {[%clk 0:02:45]}  axb6 {[%clk 0:02:15]} 13. Qb3 {[%clk 0:02:45]}  Na5 {[%clk 0:01:39]} 14. Qb5 {[%clk 0:02:44]}  c4 {[%clk 0:01:40]} 15. Ne5 {[%clk 0:02:25]}  Nh5 {[%clk 0:01:33]} 16. b4 {[%clk 0:02:11]}  cxb3 {[%clk 0:01:27]} 17. Nxb3 {[%clk 0:02:10]}  Nxf4 {[%clk 0:01:24]} 18. Nxa5 {[%clk 0:01:56]}  Rxa5 {[%clk 0:01:23]} 19. Rxa5 {[%clk 0:01:55]}  bxa5 {[%clk 0:01:23]} 20. exf4 {[%clk 0:01:55]}  Qc7 {[%clk 0:01:20]} 21. Rc1 {[%clk 0:01:41]}  e6 {[%clk 0:01:15]} 22. h4 {[%clk 0:01:36]}  Ra8 {[%clk 0:01:06]} 23. Qa4 {[%clk 0:01:35]}  h5 {[%clk 0:00:57]} 24. g3 {[%clk 0:01:25]}  Bxe5 {[%clk 0:00:22]} 25. fxe5 {[%clk 0:01:24]}  Qc4 {[%clk 0:00:23]} 26. Qa3 {[%clk 0:01:10]}  a4 {[%clk 0:00:20]} 27. Rb1 {[%clk 0:01:08]}  Rc8 {[%clk 0:00:19]} 28. Rb4 {[%clk 0:00:52]}  Qxc3 {[%clk 0:00:19]} 29. Qxa4 {[%clk 0:00:52]}  Qe1+ {[%clk 0:00:18]} 30. Kg2 {[%clk 0:00:52]}  Rc1 {[%clk 0:00:16]} 31. g4 {[%clk 0:00:16]}  Qh1+ {[%clk 0:00:15]} 32. Kg3 {[%clk 0:00:16]}  Rc3+ {[%clk 0:00:12]} 33. Kf4 {[%clk 0:00:16]}  Qf3+ {[%clk 0:00:12]} 34. Kg5 {[%clk 0:00:16]}  Qxg4+ {[%clk 0:00:12]} 35. Kf6 {[%clk 0:00:16]}  Qxh4# {[%clk 0:00:13]} 0-1


[Site "https://www.chess.com"]

[Event "Titled Tuesday Blitz October 31 Late 2023"]
[White "Tokhirjonova, Gulrukhbegim"]
[Black "Golubev, Mikhail"]
[WhiteFideId "14203626"]
[BlackFideId "14100983"]
[WhiteElo "2690"]
[BlackElo "2549"]
[Result "1-0"]
[Round "6"]
[TimeControl "180+1"]
[Date "2023.10.31"]
[WhiteClock "0:02:03"]
[BlackClock "0:00:01"]
[Board "49"]

1. Nf3 {[%clk 0:02:54]}  d6 {[%clk 0:02:59]} 2. d4 {[%clk 0:02:53]}  Nf6 {[%clk 0:02:59]} 3. Bf4 {[%clk 0:02:51]}  g6 {[%clk 0:02:54]} 4. Nc3 {[%clk 0:02:49]}  c6 {[%clk 0:02:49]} 5. e4 {[%clk 0:02:47]}  b5 {[%clk 0:02:48]} 6. Bd3 {[%clk 0:02:47]}  Nbd7 {[%clk 0:02:39]} 7. Qd2 {[%clk 0:02:47]}  a5 {[%clk 0:02:29]} 8. h3 {[%clk 0:02:46]}  Nb6 {[%clk 0:02:20]} 9. O-O {[%clk 0:02:40]}  b4 {[%clk 0:02:05]} 10. Ne2 {[%clk 0:02:39]}  Ba6 {[%clk 0:01:55]} 11. b3 {[%clk 0:02:35]}  Bg7 {[%clk 0:01:48]} 12. Rfe1 {[%clk 0:02:31]}  O-O {[%clk 0:01:47]} 13. Bh6 {[%clk 0:02:32]}  d5 {[%clk 0:01:10]} 14. Bxg7 {[%clk 0:02:22]}  Kxg7 {[%clk 0:01:11]} 15. Ng3 {[%clk 0:02:20]}  Bxd3 {[%clk 0:01:06]} 16. cxd3 {[%clk 0:02:19]}  e6 {[%clk 0:01:00]} 17. Rac1 {[%clk 0:02:18]}  Nfd7 {[%clk 0:00:26]} 18. Rxc6 {[%clk 0:02:14]}  Qe7 {[%clk 0:00:21]} 19. Rec1 {[%clk 0:02:14]}  Rfc8 {[%clk 0:00:19]} 20. Ne2 {[%clk 0:02:13]}  Rxc6 {[%clk 0:00:18]} 21. Rxc6 {[%clk 0:02:14]}  Rc8 {[%clk 0:00:17]} 22. Qc2 {[%clk 0:02:13]}  Rxc6 {[%clk 0:00:12]} 23. Qxc6 {[%clk 0:02:14]}  h6 {[%clk 0:00:09]} 24. h4 {[%clk 0:02:08]}  g5 {[%clk 0:00:08]} 25. hxg5 {[%clk 0:02:07]}  hxg5 {[%clk 0:00:09]} 26. Ng3 {[%clk 0:02:07]}  g4 {[%clk 0:00:09]} 27. Nd2 {[%clk 0:02:05]}  Qg5 {[%clk 0:00:07]} 28. Ndf1 {[%clk 0:02:04]}  Qf4 {[%clk 0:00:01]} 29. Nh5+ {[%clk 0:02:03]} 1-0


[Site "https://www.chess.com"]

[Event "Titled Tuesday Blitz October 31 Late 2023"]
[White "Leiva, Gianmarco"]
[Black "dodoucb"]
[WhiteFideId "3804399"]
[WhiteElo "2688"]
[BlackElo "2545"]
[Result "1-0"]
[Round "6"]
[TimeControl "180+1"]
[Date "2023.10.31"]
[WhiteClock "0:00:49"]
[BlackClock "0:01:02"]
[Board "50"]

1. e4 {[%clk 0:02:55]}  c6 {[%clk 0:02:57]} 2. d4 {[%clk 0:02:51]}  d5 {[%clk 0:02:57]} 3. e5 {[%clk 0:02:47]}  Bf5 {[%clk 0:02:56]} 4. Be2 {[%clk 0:02:47]}  e6 {[%clk 0:02:54]} 5. Nf3 {[%clk 0:02:47]}  Nd7 {[%clk 0:02:53]} 6. O-O {[%clk 0:02:44]}  Ne7 {[%clk 0:02:51]} 7. c3 {[%clk 0:02:41]}  c5 {[%clk 0:02:47]} 8. Nbd2 {[%clk 0:01:49]}  Nc6 {[%clk 0:02:43]} 9. Re1 {[%clk 0:01:39]}  Be7 {[%clk 0:02:38]} 10. Nf1 {[%clk 0:01:38]}  O-O {[%clk 0:02:30]} 11. Ng3 {[%clk 0:01:38]}  Bg6 {[%clk 0:02:30]} 12. Bd3 {[%clk 0:01:35]}  Bxd3 {[%clk 0:01:53]} 13. Qxd3 {[%clk 0:01:35]}  Qa5 {[%clk 0:01:53]} 14. Bg5 {[%clk 0:01:34]}  Rfc8 {[%clk 0:01:52]} 15. Bxe7 {[%clk 0:01:19]}  Nxe7 {[%clk 0:01:50]} 16. Ng5 {[%clk 0:01:17]}  Ng6 {[%clk 0:01:38]} 17. h4 {[%clk 0:01:14]}  Qa6 {[%clk 0:01:19]} 18. Qf3 {[%clk 0:01:11]}  Nb8 {[%clk 0:01:02]} 19. Qxf7+ {[%clk 0:00:49]} 1-0


[Site "https://www.chess.com"]

[Event "Titled Tuesday Blitz October 31 Late 2023"]
[White "Shubenkova, Veronika"]
[Black "Zavgorodniy, Sergiy"]
[WhiteFideId "44124040"]
[BlackFideId "14110148"]
[WhiteElo "2533"]
[BlackElo "2681"]
[Result "1/2-1/2"]
[Round "6"]
[TimeControl "180+1"]
[Date "2023.10.31"]
[WhiteClock "0:01:16"]
[BlackClock "0:01:32"]
[Board "52"]

1. e4 {[%clk 0:03:00]}  c6 {[%clk 0:02:59]} 2. d4 {[%clk 0:03:00]}  d5 {[%clk 0:03:00]} 3. Nc3 {[%clk 0:03:01]}  dxe4 {[%clk 0:03:00]} 4. Nxe4 {[%clk 0:03:02]}  Bf5 {[%clk 0:03:00]} 5. Ng3 {[%clk 0:03:02]}  Bg6 {[%clk 0:03:01]} 6. Nf3 {[%clk 0:03:02]}  Nd7 {[%clk 0:03:01]} 7. h4 {[%clk 0:03:02]}  h6 {[%clk 0:03:01]} 8. h5 {[%clk 0:03:03]}  Bh7 {[%clk 0:03:02]} 9. Bd3 {[%clk 0:03:03]}  Bxd3 {[%clk 0:03:02]} 10. Qxd3 {[%clk 0:03:04]}  e6 {[%clk 0:03:03]} 11. Bf4 {[%clk 0:03:03]}  Ngf6 {[%clk 0:03:04]} 12. c4 {[%clk 0:03:02]}  Be7 {[%clk 0:02:55]} 13. O-O-O {[%clk 0:03:01]}  b5 {[%clk 0:02:55]} 14. c5 {[%clk 0:02:56]}  Nd5 {[%clk 0:02:54]} 15. Bd2 {[%clk 0:02:56]}  O-O {[%clk 0:02:54]} 16. Kb1 {[%clk 0:02:54]}  a5 {[%clk 0:02:54]} 17. Ne4 {[%clk 0:02:54]}  a4 {[%clk 0:02:54]} 18. g4 {[%clk 0:02:54]}  a3 {[%clk 0:02:54]} 19. b3 {[%clk 0:02:51]}  b4 {[%clk 0:02:51]} 20. g5 {[%clk 0:02:51]}  hxg5 {[%clk 0:02:51]} 21. Nexg5 {[%clk 0:02:48]}  Bxg5 {[%clk 0:02:30]} 22. Nxg5 {[%clk 0:02:47]}  N7f6 {[%clk 0:02:16]} 23. h6 {[%clk 0:02:46]}  g6 {[%clk 0:02:16]} 24. Nxe6 {[%clk 0:02:45]}  Qd7 {[%clk 0:01:59]} 25. Nxf8 {[%clk 0:02:45]}  Rxf8 {[%clk 0:02:00]} 26. Rde1 {[%clk 0:02:41]}  Kh7 {[%clk 0:01:55]} 27. Rhg1 {[%clk 0:02:38]}  Re8 {[%clk 0:01:37]} 28. Rxe8 {[%clk 0:02:34]}  Qxe8 {[%clk 0:01:38]} 29. Re1 {[%clk 0:02:34]}  Qd7 {[%clk 0:01:38]} 30. f4 {[%clk 0:02:15]}  Qg4 {[%clk 0:01:36]} 31. f5 {[%clk 0:01:16]}  g5 {[%clk 0:01:32]} 1/2-1/2


[Site "https://www.chess.com"]

[Event "Titled Tuesday Blitz October 31 Late 2023"]
[White "Mendez Fortes, Eduardo Jesus"]
[Black "Gurevich, Dmitry"]
[WhiteFideId "3502376"]
[BlackFideId "2000407"]
[WhiteElo "2677"]
[BlackElo "2535"]
[Result "0-1"]
[Round "6"]
[TimeControl "180+1"]
[Date "2023.10.31"]
[WhiteClock "0:00:57"]
[BlackClock "0:00:46"]
[Board "53"]

1. e4 {[%clk 0:03:00]}  c5 {[%clk 0:02:59]} 2. Nf3 {[%clk 0:03:01]}  d6 {[%clk 0:02:58]} 3. d4 {[%clk 0:03:01]}  cxd4 {[%clk 0:02:58]} 4. Nxd4 {[%clk 0:03:02]}  Nf6 {[%clk 0:02:58]} 5. Nc3 {[%clk 0:03:02]}  Nc6 {[%clk 0:02:59]} 6. Bg5 {[%clk 0:03:02]}  e6 {[%clk 0:02:58]} 7. Qd2 {[%clk 0:03:02]}  Be7 {[%clk 0:02:56]} 8. O-O-O {[%clk 0:03:00]}  O-O {[%clk 0:02:56]} 9. h4 {[%clk 0:02:58]}  a6 {[%clk 0:02:40]} 10. Kb1 {[%clk 0:02:57]}  Nxd4 {[%clk 0:02:39]} 11. Qxd4 {[%clk 0:02:58]}  b5 {[%clk 0:02:38]} 12. f3 {[%clk 0:02:55]}  Bb7 {[%clk 0:02:37]} 13. g4 {[%clk 0:02:54]}  Rc8 {[%clk 0:02:36]} 14. a3 {[%clk 0:02:51]}  Qc7 {[%clk 0:02:34]} 15. Qd2 {[%clk 0:02:49]}  Rfd8 {[%clk 0:02:30]} 16. h5 {[%clk 0:02:46]}  h6 {[%clk 0:02:26]} 17. Bf4 {[%clk 0:02:45]}  Nh7 {[%clk 0:02:22]} 18. Be3 {[%clk 0:02:42]}  d5 {[%clk 0:02:10]} 19. exd5 {[%clk 0:02:36]}  Nf6 {[%clk 0:02:03]} 20. Bf4 {[%clk 0:02:31]}  e5 {[%clk 0:01:58]} 21. Be3 {[%clk 0:02:24]}  Nxd5 {[%clk 0:01:55]} 22. Nxd5 {[%clk 0:02:24]}  Bxd5 {[%clk 0:01:43]} 23. Qe2 {[%clk 0:02:07]}  b4 {[%clk 0:01:29]} 24. a4 {[%clk 0:01:56]}  b3 {[%clk 0:01:26]} 25. c4 {[%clk 0:01:30]}  Bxc4 {[%clk 0:01:15]} 26. Rxd8+ {[%clk 0:01:22]}  Qxd8 {[%clk 0:01:10]} 27. Qe1 {[%clk 0:01:18]}  Bd3+ {[%clk 0:01:05]} 28. Ka1 {[%clk 0:01:12]}  Rc4 {[%clk 0:00:50]} 29. Bxd3 {[%clk 0:00:56]}  Rxa4+ {[%clk 0:00:47]} 30. Kb1 {[%clk 0:00:56]}  Qxd3+ {[%clk 0:00:46]} 31. Kc1 {[%clk 0:00:57]}  Ra1# {[%clk 0:00:46]} 0-1


[Site "https://www.chess.com"]

[Event "Titled Tuesday Blitz October 31 Late 2023"]
[White "Matinian, Nikita"]
[Black "Zakarian, David"]
[WhiteFideId "24129100"]
[BlackFideId "13301276"]
[WhiteElo "2642"]
[BlackElo "2441"]
[Result "1-0"]
[Round "6"]
[TimeControl "180+1"]
[Date "2023.10.31"]
[WhiteClock "0:01:25"]
[BlackClock "0:00:31"]
[Board "57"]

1. d4 {[%clk 0:03:00]}  Nf6 {[%clk 0:02:58]} 2. c4 {[%clk 0:02:58]}  Nc6 {[%clk 0:02:53]} 3. d5 {[%clk 0:02:58]}  Ne5 {[%clk 0:02:53]} 4. Nf3 {[%clk 0:02:58]}  Nxf3+ {[%clk 0:02:52]} 5. gxf3 {[%clk 0:02:56]}  g6 {[%clk 0:02:49]} 6. e4 {[%clk 0:02:56]}  d6 {[%clk 0:02:50]} 7. Nc3 {[%clk 0:02:54]}  Bg7 {[%clk 0:02:50]} 8. Be3 {[%clk 0:02:54]}  c6 {[%clk 0:02:48]} 9. Qd2 {[%clk 0:02:54]}  O-O {[%clk 0:02:45]} 10. O-O-O {[%clk 0:02:53]}  a6 {[%clk 0:02:41]} 11. Kb1 {[%clk 0:02:53]}  cxd5 {[%clk 0:02:40]} 12. cxd5 {[%clk 0:02:54]}  b5 {[%clk 0:02:41]} 13. h4 {[%clk 0:02:54]}  h5 {[%clk 0:02:33]} 14. Bh6 {[%clk 0:02:51]}  Bd7 {[%clk 0:02:29]} 15. Rg1 {[%clk 0:02:48]}  b4 {[%clk 0:02:10]} 16. Ne2 {[%clk 0:02:47]}  a5 {[%clk 0:02:07]} 17. Nd4 {[%clk 0:02:40]}  Rc8 {[%clk 0:02:04]} 18. Bd3 {[%clk 0:02:37]}  Ba4 {[%clk 0:02:02]} 19. b3 {[%clk 0:02:36]}  Bd7 {[%clk 0:02:00]} 20. Ne6 {[%clk 0:02:22]}  fxe6 {[%clk 0:01:50]} 21. Rxg6 {[%clk 0:02:21]}  Rf7 {[%clk 0:01:48]} 22. Rdg1 {[%clk 0:02:12]}  Ne8 {[%clk 0:01:19]} 23. dxe6 {[%clk 0:02:08]}  Bxe6 {[%clk 0:01:18]} 24. Rxe6 {[%clk 0:02:07]}  Nf6 {[%clk 0:01:15]} 25. Bc4 {[%clk 0:01:57]}  Kh7 {[%clk 0:01:09]} 26. Rxg7+ {[%clk 0:01:51]}  Rxg7 {[%clk 0:01:08]} 27. Bxg7 {[%clk 0:01:52]}  Kxg7 {[%clk 0:01:08]} 28. Qg5+ {[%clk 0:01:53]}  Kh7 {[%clk 0:00:58]} 29. Bd3 {[%clk 0:01:41]}  Rc3 {[%clk 0:00:57]} 30. e5+ {[%clk 0:01:38]}  Rxd3 {[%clk 0:00:55]} 31. exf6 {[%clk 0:01:28]}  exf6 {[%clk 0:00:31]} 32. Qf5+ {[%clk 0:01:25]} 1-0


[Site "https://www.chess.com"]